[Event "FIDE World Rapid Chess Championship 2021"]
[White "Erigaisi, Arjun"]
[Black "Klekowski, Maciej"]
[WhiteFideId "35009192"]
[BlackFideId "1132717"]
[WhiteElo "2397"]
[BlackElo "2528"]
[Result "1-0"]
[Round "12"]
[TimeControl "900+10"]
[Date "2021.12.28"]
[WhiteClock "0:00:43"]
[BlackClock "0:00:39"]

1. e4 {[%clk 0:15:27]}  c5 {[%clk 0:15:19]} 2. Nf3 {[%clk 0:15:27]}  Nc6 {[%clk 0:15:19]} 3. Bb5 {[%clk 0:15:27]}  g6 {[%clk 0:15:19]} 4. O-O {[%clk 0:15:27]}  Bg7 {[%clk 0:15:19]} 5. Bxc6 {[%clk 0:15:27]}  bxc6 {[%clk 0:15:19]} 6. d3 {[%clk 0:15:27]}  d6 {[%clk 0:15:19]} 7. e5 {[%clk 0:15:27]}  dxe5 {[%clk 0:15:19]} 8. Re1 {[%clk 0:15:27]}  f6 {[%clk 0:15:04]} 9. b3 {[%clk 0:15:21]}  Nh6 {[%clk 0:15:04]} 10. Nc3 {[%clk 0:15:21]}  Nf5 {[%clk 0:15:04]} 11. Ba3 {[%clk 0:15:21]}  Nd4 {[%clk 0:15:04]} 12. h3 {[%clk 0:14:04]}  Ne6 {[%clk 0:14:19]} 13. Na4 {[%clk 0:14:04]}  c4 {[%clk 0:14:19]} 14. dxc4 {[%clk 0:14:04]}  Qxd1 {[%clk 0:14:19]} 15. Raxd1 {[%clk 0:14:04]}  Nf4 {[%clk 0:14:19]} 16. Bc1 {[%clk 0:14:04]}  Ne6 {[%clk 0:13:53]} 17. Nd2 {[%clk 0:12:38]}  Kf7 {[%clk 0:13:53]} 18. Ne4 {[%clk 0:12:38]}  g5 {[%clk 0:13:03]} 19. f3 {[%clk 0:12:13]}  h5 {[%clk 0:13:03]} 20. Kf2 {[%clk 0:12:13]}  Nf4 {[%clk 0:11:09]} 21. Nac5 {[%clk 0:10:56]}  g4 {[%clk 0:05:28]} 22. Bxf4 {[%clk 0:10:36]}  exf4 {[%clk 0:05:14]} 23. Nd7 {[%clk 0:10:36]}  gxh3 {[%clk 0:05:14]} 24. gxh3 {[%clk 0:10:36]}  h4 {[%clk 0:05:14]} 25. Nec5 {[%clk 0:10:36]}  Bh6 {[%clk 0:05:06]} 26. Re6 {[%clk 0:03:32]}  Rg8 {[%clk 0:02:24]} 27. Rde1 {[%clk 0:03:32]}  Rg3 {[%clk 0:00:57]} 28. Rxe7+ {[%clk 0:02:58]}  Kg6 {[%clk 0:00:57]} 29. Ne4 {[%clk 0:02:58]}  Rxh3 {[%clk 0:00:57]} 30. Kg2 {[%clk 0:02:58]}  Rg3+ {[%clk 0:00:57]} 31. Nxg3 {[%clk 0:02:58]}  fxg3 {[%clk 0:00:57]} 32. Re8 {[%clk 0:01:28]}  Bf4 {[%clk 0:01:09]} 33. Rh1 {[%clk 0:01:28]}  Bg5 {[%clk 0:01:09]} 34. c5 {[%clk 0:01:28]}  Kf5 {[%clk 0:00:39]} 35. a4 {[%clk 0:00:43]}  Bb7 {[%clk 0:00:39]} 36. Rxa8 {[%clk 0:00:43]}  Bxa8 {[%clk 0:00:39]} 37. Re1 {[%clk 0:00:43]}  Bb7 {[%clk 0:00:39]} 38. Re8 {[%clk 0:00:43]}  Kf4 {[%clk 0:00:39]} 39. Re4+ {[%clk 0:00:43]}  Kf5 {[%clk 0:00:39]} 40. c4 {[%clk 0:00:43]}  a5 {[%clk 0:00:39]} 41. Nb6 {[%clk 0:00:43]}  Ba6 {[%clk 0:00:39]} 42. Kh3 {[%clk 0:00:43]}  Bb7 {[%clk 0:00:39]} 43. Rg4 {[%clk 0:00:43]}  Be3 {[%clk 0:00:39]} 44. Rxh4 {[%clk 0:00:43]}  Bxc5 {[%clk 0:00:39]} 45. Rh5+ {[%clk 0:00:43]} 1-0


[Site "http://www.Chess.com"]

[Event "FIDE World Rapid Chess Championship 2021"]
[White "Thybo, Jesper Sondergaard"]
[Black "Michalik, Peter"]
[WhiteFideId "1438832"]
[BlackFideId "14907526"]
[WhiteElo "2401"]
[BlackElo "2515"]
[Result "0-1"]
[Round "12"]
[TimeControl "900+10"]
[Date "2021.12.28"]
[WhiteClock "0:01:24"]
[BlackClock "0:05:01"]

1. d4 {[%clk 0:15:19]}  Nf6 {[%clk 0:15:17]} 2. c4 {[%clk 0:15:19]}  e6 {[%clk 0:15:17]} 3. g3 {[%clk 0:15:19]}  d5 {[%clk 0:15:17]} 4. Nf3 {[%clk 0:15:19]}  Bb4+ {[%clk 0:15:17]} 5. Bd2 {[%clk 0:15:19]}  Be7 {[%clk 0:15:17]} 6. Bg2 {[%clk 0:15:19]}  O-O {[%clk 0:15:17]} 7. O-O {[%clk 0:15:19]}  Nbd7 {[%clk 0:15:17]} 8. b4 {[%clk 0:15:19]}  Ne4 {[%clk 0:15:17]} 9. Qb3 {[%clk 0:14:35]}  c6 {[%clk 0:15:35]} 10. a4 {[%clk 0:14:35]}  f5 {[%clk 0:15:35]} 11. a5 {[%clk 0:14:18]}  g5 {[%clk 0:15:35]} 12. Bc1 {[%clk 0:14:18]}  g4 {[%clk 0:11:16]} 13. Ne1 {[%clk 0:13:52]}  Bf6 {[%clk 0:11:16]} 14. Bb2 {[%clk 0:13:52]}  b5 {[%clk 0:11:16]} 15. cxb5 {[%clk 0:13:24]}  cxb5 {[%clk 0:09:31]} 16. Nd3 {[%clk 0:13:24]}  Bg7 {[%clk 0:09:31]} 17. Nc5 {[%clk 0:11:26]}  Ndf6 {[%clk 0:09:16]} 18. a6 {[%clk 0:08:33]}  h5 {[%clk 0:09:16]} 19. Qd3 {[%clk 0:08:33]}  Rb8 {[%clk 0:09:16]} 20. Nc3 {[%clk 0:08:33]}  Bd7 {[%clk 0:09:16]} 21. Bc1 {[%clk 0:07:55]}  Nxc5 {[%clk 0:08:32]} 22. dxc5 {[%clk 0:07:55]}  d4 {[%clk 0:07:43]} 23. Nb1 {[%clk 0:05:48]}  e5 {[%clk 0:07:43]} 24. e3 {[%clk 0:05:48]}  Be6 {[%clk 0:07:43]} 25. exd4 {[%clk 0:05:48]}  Bc4 {[%clk 0:07:43]} 26. Qxf5 {[%clk 0:05:17]}  Qxd4 {[%clk 0:07:08]} 27. Ra3 {[%clk 0:05:17]}  Bxf1 {[%clk 0:07:08]} 28. Bxf1 {[%clk 0:05:17]}  Ne4 {[%clk 0:06:25]} 29. Qe6+ {[%clk 0:03:19]}  Kh8 {[%clk 0:06:25]} 30. Be3 {[%clk 0:03:19]}  Qxb4 {[%clk 0:06:25]} 31. Rb3 {[%clk 0:02:37]}  Nxc5 {[%clk 0:05:06]} 32. Rxb4 {[%clk 0:02:37]}  Nxe6 {[%clk 0:05:06]} 33. Bxa7 {[%clk 0:02:37]}  Ra8 {[%clk 0:05:06]} 34. Be3 {[%clk 0:02:37]}  Nd4 {[%clk 0:05:06]} 35. Bxd4 {[%clk 0:02:37]}  exd4 {[%clk 0:05:06]} 36. Rxb5 {[%clk 0:01:24]}  Rxa6 {[%clk 0:05:01]} 37. Rxh5+ {[%clk 0:01:24]}  Rh6 {[%clk 0:05:01]} 38. Rxh6+ {[%clk 0:01:24]}  Bxh6 {[%clk 0:05:01]} 39. Na3 {[%clk 0:01:24]}  d3 {[%clk 0:05:01]} 40. Nc4 {[%clk 0:01:24]}  d2 {[%clk 0:05:01]} 41. Be2 {[%clk 0:01:24]}  Rb8 {[%clk 0:05:01]} 0-1


[Site "http://www.Chess.com"]

[Event "FIDE World Rapid Chess Championship 2021"]
[White "Kanarek, Marcel"]
[Black "Lima, Darcy"]
[WhiteFideId "1126822"]
[BlackFideId "2100045"]
[WhiteElo "2296"]
[BlackElo "2505"]
[Result "1-0"]
[Round "12"]
[TimeControl "900+10"]
[Date "2021.12.28"]
[WhiteClock "0:00:31"]
[BlackClock "0:00:00"]

1. e4 {[%clk 0:15:18]}  e5 {[%clk 0:15:18]} 2. Nf3 {[%clk 0:15:18]}  Nc6 {[%clk 0:15:18]} 3. Bb5 {[%clk 0:15:18]}  Bc5 {[%clk 0:15:18]} 4. c3 {[%clk 0:15:18]}  Nf6 {[%clk 0:15:18]} 5. d3 {[%clk 0:12:59]}  O-O {[%clk 0:15:42]} 6. O-O {[%clk 0:12:59]}  d6 {[%clk 0:15:42]} 7. Bxc6 {[%clk 0:12:59]}  bxc6 {[%clk 0:15:42]} 8. Be3 {[%clk 0:12:59]}  Bxe3 {[%clk 0:15:42]} 9. fxe3 {[%clk 0:12:59]}  c5 {[%clk 0:15:42]} 10. Nbd2 {[%clk 0:12:59]}  a5 {[%clk 0:15:15]} 11. d4 {[%clk 0:12:11]}  Ng4 {[%clk 0:15:09]} 12. Re1 {[%clk 0:11:13]}  cxd4 {[%clk 0:15:09]} 13. exd4 {[%clk 0:11:13]}  f6 {[%clk 0:15:09]} 14. h3 {[%clk 0:11:13]}  Nh6 {[%clk 0:15:09]} 15. Nf1 {[%clk 0:11:13]}  Be6 {[%clk 0:09:17]} 16. Ng3 {[%clk 0:10:40]}  Nf7 {[%clk 0:09:17]} 17. b3 {[%clk 0:10:40]}  c6 {[%clk 0:08:33]} 18. c4 {[%clk 0:09:06]}  Qb6 {[%clk 0:08:33]} 19. Kh1 {[%clk 0:09:06]}  c5 {[%clk 0:08:33]} 20. dxe5 {[%clk 0:09:05]}  dxe5 {[%clk 0:06:29]} 21. Nf1 {[%clk 0:05:06]}  Nd8 {[%clk 0:07:53]} 22. Ne3 {[%clk 0:05:06]}  Rf7 {[%clk 0:05:12]} 23. Nd5 {[%clk 0:05:03]}  Qb8 {[%clk 0:05:12]} 24. Rb1 {[%clk 0:05:03]}  Nc6 {[%clk 0:05:12]} 25. a3 {[%clk 0:05:03]}  Rb7 {[%clk 0:05:12]} 26. Re3 {[%clk 0:03:46]}  Qf8 {[%clk 0:04:47]} 27. a4 {[%clk 0:02:27]}  Rab8 {[%clk 0:03:28]} 28. Rc1 {[%clk 0:02:27]}  Nd4 {[%clk 0:03:28]} 29. Nxd4 {[%clk 0:02:27]}  cxd4 {[%clk 0:03:28]} 30. Rg3 {[%clk 0:02:27]}  Rc8 {[%clk 0:03:28]} 31. Qd2 {[%clk 0:02:27]}  Rc5 {[%clk 0:03:28]} 32. Rf1 {[%clk 0:01:13]}  Kh8 {[%clk 0:03:25]} 33. h4 {[%clk 0:01:13]}  Bxd5 {[%clk 0:03:25]} 34. exd5 {[%clk 0:00:44]}  Rb6 {[%clk 0:01:25]} 35. Qe2 {[%clk 0:00:44]}  Rc7 {[%clk 0:01:25]} 36. Qxe5 {[%clk 0:00:44]}  Rcb7 {[%clk 0:01:25]} 37. Qxd4 {[%clk 0:00:31]}  Qb8 {[%clk 0:00:00]} 38. Re3 {[%clk 0:00:31]}  Rxb3 {[%clk 0:00:00]} 39. Rxb3 {[%clk 0:00:31]}  Rxb3 {[%clk 0:00:00]} 40. d6 {[%clk 0:00:31]}  Qd8 {[%clk 0:00:00]} 41. Re1 {[%clk 0:00:31]}  h6 {[%clk 0:00:00]} 42. d7 {[%clk 0:00:31]}  Kh7 {[%clk 0:00:00]} 43. Qe4+ {[%clk 0:00:31]} 1-0


[Site "http://www.Chess.com"]

[Event "FIDE World Rapid Chess Championship 2021"]
[White "Teclaf, Pawel"]
[Black "Gajewski, Grzegorz"]
[WhiteFideId "1185934"]
[BlackFideId "1116207"]
[WhiteElo "2345"]
[BlackElo "2496"]
[Result "1/2-1/2"]
[Round "12"]
[TimeControl "900+10"]
[Date "2021.12.28"]
[WhiteClock "0:00:41"]
[BlackClock "0:00:26"]

1. c4 {[%clk 0:15:08]}  e5 {[%clk 0:15:00]} 2. d3 {[%clk 0:15:15]}  Nf6 {[%clk 0:15:00]} 3. Nf3 {[%clk 0:15:15]}  Bb4+ {[%clk 0:15:00]} 4. Bd2 {[%clk 0:15:15]}  Bxd2+ {[%clk 0:15:00]} 5. Nbxd2 {[%clk 0:15:15]}  Qe7 {[%clk 0:15:01]} 6. e3 {[%clk 0:15:10]}  O-O {[%clk 0:15:01]} 7. Be2 {[%clk 0:15:10]}  d5 {[%clk 0:14:38]} 8. cxd5 {[%clk 0:12:29]}  Nxd5 {[%clk 0:14:38]} 9. O-O {[%clk 0:12:29]}  c5 {[%clk 0:14:38]} 10. Rc1 {[%clk 0:12:29]}  b6 {[%clk 0:13:48]} 11. Nc4 {[%clk 0:10:48]}  Nc6 {[%clk 0:12:50]} 12. d4 {[%clk 0:06:51]}  cxd4 {[%clk 0:11:02]} 13. exd4 {[%clk 0:06:19]}  e4 {[%clk 0:11:02]} 14. Nfe5 {[%clk 0:06:19]}  Nxe5 {[%clk 0:11:02]} 15. dxe5 {[%clk 0:06:19]}  Nf4 {[%clk 0:11:02]} 16. Qd2 {[%clk 0:05:01]}  Qg5 {[%clk 0:09:55]} 17. g3 {[%clk 0:04:01]}  Nxe2+ {[%clk 0:09:55]} 18. Qxe2 {[%clk 0:04:01]}  Bh3 {[%clk 0:04:54]} 19. Rfe1 {[%clk 0:04:17]}  b5 {[%clk 0:04:54]} 20. Nd6 {[%clk 0:04:17]}  Qxe5 {[%clk 0:04:54]} 21. Nxe4 {[%clk 0:02:18]}  Rfe8 {[%clk 0:05:09]} 22. Nc3 {[%clk 0:02:18]}  Qxe2 {[%clk 0:05:09]} 23. Rxe2 {[%clk 0:02:18]}  b4 {[%clk 0:05:09]} 24. Rxe8+ {[%clk 0:02:18]}  Rxe8 {[%clk 0:05:09]} 25. Nd5 {[%clk 0:02:18]}  a5 {[%clk 0:05:09]} 26. f3 {[%clk 0:01:17]}  Be6 {[%clk 0:04:47]} 27. Nc7 {[%clk 0:01:17]}  Rc8 {[%clk 0:04:47]} 28. a3 {[%clk 0:01:17]}  bxa3 {[%clk 0:04:23]} 29. bxa3 {[%clk 0:00:15]}  Bb3 {[%clk 0:04:23]} 30. Kf2 {[%clk 0:00:15]}  a4 {[%clk 0:01:42]} 31. Rc3 {[%clk 0:00:28]}  f6 {[%clk 0:01:42]} 32. Ke2 {[%clk 0:00:28]}  Kf7 {[%clk 0:01:42]} 33. Kd2 {[%clk 0:00:28]}  g5 {[%clk 0:01:42]} 34. Nb5 {[%clk 0:00:28]}  Rxc3 {[%clk 0:01:11]} 35. Nxc3 {[%clk 0:00:19]}  Ke6 {[%clk 0:01:11]} 36. Ke3 {[%clk 0:00:19]}  Ke5 {[%clk 0:01:11]} 37. h4 {[%clk 0:00:19]}  gxh4 {[%clk 0:01:11]} 38. gxh4 {[%clk 0:00:19]}  Kf5 {[%clk 0:01:11]} 39. Ne2 {[%clk 0:00:19]}  Bd5 {[%clk 0:01:11]} 40. Ng3+ {[%clk 0:00:19]}  Ke5 {[%clk 0:01:11]} 41. f4+ {[%clk 0:00:19]}  Kd6 {[%clk 0:01:11]} 42. Kd4 {[%clk 0:00:19]}  Bc6 {[%clk 0:01:11]} 43. Kc4 {[%clk 0:00:19]}  Ke6 {[%clk 0:01:11]} 44. Kd4 {[%clk 0:00:19]}  Bf3 {[%clk 0:01:11]} 45. Kc5 {[%clk 0:00:19]}  Bd1 {[%clk 0:01:11]} 46. Kd4 {[%clk 0:00:41]}  Bc2 {[%clk 0:00:26]} 47. Kc5 {[%clk 0:00:41]}  Bb3 {[%clk 0:00:26]} 48. Kd4 {[%clk 0:00:41]}  Bd1 {[%clk 0:00:26]} 49. Ke4 {[%clk 0:00:41]} 1/2-1/2


[Site "http://www.Chess.com"]

[Event "FIDE World Rapid Chess Championship 2021"]
[White "Zilka, Stepan"]
[Black "Saraci, Nderim"]
[WhiteFideId "315303"]
[BlackFideId "6351921"]
[WhiteElo "2474"]
[BlackElo "2414"]
[Result "1-0"]
[Round "12"]
[TimeControl "900+10"]
[Date "2021.12.28"]
[WhiteClock "0:00:00"]
[BlackClock "0:00:00"]

1. e4 {[%clk 0:15:08]}  e5 {[%clk 0:15:00]} 2. Nf3 {[%clk 0:15:08]}  Nc6 {[%clk 0:15:00]} 3. Bc4 {[%clk 0:15:08]}  Bc5 {[%clk 0:15:00]} 4. c3 {[%clk 0:15:08]}  Nf6 {[%clk 0:15:00]} 5. d3 {[%clk 0:15:08]}  O-O {[%clk 0:15:00]} 6. O-O {[%clk 0:15:08]}  d6 {[%clk 0:15:00]} 7. h3 {[%clk 0:15:08]}  h6 {[%clk 0:15:00]} 8. Re1 {[%clk 0:13:39]}  a5 {[%clk 0:15:13]} 9. Bb3 {[%clk 0:13:39]}  Ba7 {[%clk 0:15:13]} 10. d4 {[%clk 0:13:39]}  Re8 {[%clk 0:15:13]} 11. Bc2 {[%clk 0:13:39]}  Nh7 {[%clk 0:15:00]} 12. Be3 {[%clk 0:12:12]}  Qf6 {[%clk 0:11:48]} 13. Na3 {[%clk 0:12:12]}  Ne7 {[%clk 0:11:27]} 14. dxe5 {[%clk 0:10:06]}  dxe5 {[%clk 0:10:02]} 15. Bxa7 {[%clk 0:08:50]}  Rxa7 {[%clk 0:10:02]} 16. Nb5 {[%clk 0:08:50]}  Nc6 {[%clk 0:10:02]} 17. Nxa7 {[%clk 0:08:50]}  Nxa7 {[%clk 0:10:02]} 18. Re3 {[%clk 0:08:50]}  Nf8 {[%clk 0:10:02]} 19. Qf1 {[%clk 0:09:59]}  Bd7 {[%clk 0:07:12]} 20. Rd1 {[%clk 0:09:59]}  Nc8 {[%clk 0:07:12]} 21. Qc4 {[%clk 0:08:39]}  Qb6 {[%clk 0:06:15]} 22. Bb3 {[%clk 0:05:48]}  Re7 {[%clk 0:00:00]} 23. Qe2 {[%clk 0:06:43]}  Nd6 {[%clk 0:00:00]} 24. Qc2 {[%clk 0:06:43]}  Qa6 {[%clk 0:00:00]} 25. a4 {[%clk 0:06:43]}  Qb6 {[%clk 0:00:00]} 26. Ba2 {[%clk 0:04:30]}  Bc6 {[%clk 0:00:00]} 27. Bd5 {[%clk 0:04:30]}  Bd7 {[%clk 0:00:00]} 28. Kh2 {[%clk 0:04:30]}  Qc5 {[%clk 0:00:00]} 29. Ba2 {[%clk 0:04:30]}  Bc6 {[%clk 0:00:00]} 30. Bd5 {[%clk 0:02:56]}  Bd7 {[%clk 0:00:00]} 31. g3 {[%clk 0:02:56]}  Nh7 {[%clk 0:00:00]} 32. Nd2 {[%clk 0:02:56]}  Nf6 {[%clk 0:00:00]} 33. Nb3 {[%clk 0:02:56]}  Qa7 {[%clk 0:00:00]} 34. Nc1 {[%clk 0:01:10]}  Qc5 {[%clk 0:00:00]} 35. Kg2 {[%clk 0:01:10]}  Qa7 {[%clk 0:00:00]} 36. Re2 {[%clk 0:00:00]}  Qb8 {[%clk 0:00:00]} 37. f3 {[%clk 0:00:00]}  Qe8 {[%clk 0:00:00]} 38. Bb3 {[%clk 0:00:00]}  Bc6 {[%clk 0:00:00]} 39. c4 {[%clk 0:00:00]}  b6 {[%clk 0:00:00]} 40. c5 {[%clk 0:00:00]}  Nb7 {[%clk 0:00:00]} 41. cxb6 {[%clk 0:00:00]}  cxb6 {[%clk 0:00:00]} 42. Na2 {[%clk 0:00:00]}  Nc5 {[%clk 0:00:00]} 43. Nc3 {[%clk 0:00:00]}  Nfd7 {[%clk 0:00:00]} 44. Red2 {[%clk 0:00:00]}  Qc8 {[%clk 0:00:00]} 45. Bd5 {[%clk 0:00:00]}  Re8 {[%clk 0:00:00]} 46. Bxc6 {[%clk 0:00:00]}  Qxc6 {[%clk 0:00:00]} 47. Nb5 {[%clk 0:00:00]}  Qg6 {[%clk 0:00:00]} 48. Rxd7 {[%clk 0:00:00]} 1-0


[Site "http://www.Chess.com"]

[Event "FIDE World Rapid Chess Championship 2021"]
[White "Petrovskyi, Vadym"]
[Black "Sychev, Klementy"]
[WhiteFideId "14165210"]
[BlackFideId "4114060"]
[WhiteElo "2282"]
[BlackElo "2461"]
[Result "0-1"]
[Round "12"]
[TimeControl "900+10"]
[Date "2021.12.28"]
[WhiteClock "0:03:31"]
[BlackClock "0:01:19"]

1. e4 {[%clk 0:15:18]}  e5 {[%clk 0:15:19]} 2. Nf3 {[%clk 0:15:18]}  Nc6 {[%clk 0:15:19]} 3. d4 {[%clk 0:15:18]}  exd4 {[%clk 0:15:19]} 4. Bc4 {[%clk 0:15:18]}  Bb4+ {[%clk 0:15:19]} 5. c3 {[%clk 0:15:18]}  dxc3 {[%clk 0:15:19]} 6. O-O {[%clk 0:14:55]}  Nf6 {[%clk 0:14:58]} 7. bxc3 {[%clk 0:14:55]}  Bc5 {[%clk 0:14:58]} 8. e5 {[%clk 0:14:55]}  d5 {[%clk 0:09:04]} 9. Bb3 {[%clk 0:14:55]}  Ng4 {[%clk 0:09:11]} 10. Bg5 {[%clk 0:13:47]}  Be7 {[%clk 0:06:53]} 11. Bxe7 {[%clk 0:13:47]}  Nxe7 {[%clk 0:06:53]} 12. Nd4 {[%clk 0:13:47]}  Nxe5 {[%clk 0:06:53]} 13. Re1 {[%clk 0:13:47]}  N5g6 {[%clk 0:06:08]} 14. h4 {[%clk 0:10:19]}  O-O {[%clk 0:05:58]} 15. h5 {[%clk 0:08:52]}  Nf4 {[%clk 0:05:58]} 16. h6 {[%clk 0:08:52]}  Neg6 {[%clk 0:05:58]} 17. hxg7 {[%clk 0:08:52]}  Kxg7 {[%clk 0:05:58]} 18. Qf3 {[%clk 0:08:52]}  Qg5 {[%clk 0:05:58]} 19. g3 {[%clk 0:07:49]}  Bd7 {[%clk 0:04:26]} 20. Na3 {[%clk 0:07:49]}  c5 {[%clk 0:03:50]} 21. Ndb5 {[%clk 0:06:13]}  Bc6 {[%clk 0:03:50]} 22. Kf1 {[%clk 0:06:13]}  Ne6 {[%clk 0:03:50]} 23. Nd6 {[%clk 0:06:13]}  Rad8 {[%clk 0:03:50]} 24. Nf5+ {[%clk 0:06:05]}  Kh8 {[%clk 0:02:06]} 25. Bc2 {[%clk 0:06:05]}  d4 {[%clk 0:02:06]} 26. Be4 {[%clk 0:06:05]}  d3 {[%clk 0:02:06]} 27. Nc4 {[%clk 0:06:05]}  d2 {[%clk 0:02:06]} 28. Red1 {[%clk 0:06:05]}  Bb5 {[%clk 0:01:19]} 29. Ne3 {[%clk 0:05:36]}  f5 {[%clk 0:01:19]} 30. Bd5 {[%clk 0:05:36]}  f4 {[%clk 0:01:19]} 31. gxf4 {[%clk 0:03:31]}  Rxf4 {[%clk 0:01:19]} 32. Qh3 {[%clk 0:03:31]}  Rxd5 {[%clk 0:01:19]} 33. Qxe6 {[%clk 0:03:31]}  Rxc4 {[%clk 0:01:19]} 34. Qc8+ {[%clk 0:03:31]}  Rd8 {[%clk 0:01:19]} 35. Qxb7 {[%clk 0:03:31]}  Rb4+ {[%clk 0:01:19]} 0-1


[Site "http://www.Chess.com"]

[Event "FIDE World Rapid Chess Championship 2021"]
[White "Kantor, Gergely"]
[Black "Vastrukhin, Oleg"]
[WhiteFideId "751499"]
[BlackFideId "4192770"]
[WhiteElo "2454"]
[BlackElo "2382"]
[Result "0-1"]
[Round "12"]
[TimeControl "900+10"]
[Date "2021.12.28"]
[WhiteClock "0:01:14"]
[BlackClock "0:09:29"]

1. e4 {[%clk 0:15:18]}  e6 {[%clk 0:15:19]} 2. d4 {[%clk 0:15:18]}  d5 {[%clk 0:15:19]} 3. Nc3 {[%clk 0:15:18]}  Bb4 {[%clk 0:15:19]} 4. Ne2 {[%clk 0:15:18]}  dxe4 {[%clk 0:15:19]} 5. a3 {[%clk 0:15:18]}  Bxc3+ {[%clk 0:15:19]} 6. Nxc3 {[%clk 0:15:18]}  Nc6 {[%clk 0:15:19]} 7. Bf4 {[%clk 0:15:18]}  Nge7 {[%clk 0:15:40]} 8. Nxe4 {[%clk 0:14:11]}  O-O {[%clk 0:15:40]} 9. c3 {[%clk 0:14:11]}  Ng6 {[%clk 0:15:40]} 10. Be3 {[%clk 0:14:11]}  e5 {[%clk 0:15:12]} 11. d5 {[%clk 0:12:20]}  Nce7 {[%clk 0:15:02]} 12. d6 {[%clk 0:09:50]}  Nf5 {[%clk 0:15:02]} 13. Bc5 {[%clk 0:09:24]}  b6 {[%clk 0:13:46]} 14. d7 {[%clk 0:06:08]}  Bb7 {[%clk 0:12:59]} 15. Bxf8 {[%clk 0:06:03]}  Bxe4 {[%clk 0:12:59]} 16. Bd3 {[%clk 0:05:19]}  Bxg2 {[%clk 0:10:42]} 17. Rg1 {[%clk 0:05:19]}  Nfh4 {[%clk 0:10:42]} 18. Rxg2 {[%clk 0:03:06]}  Nxg2+ {[%clk 0:10:35]} 19. Kf1 {[%clk 0:03:06]}  N2f4 {[%clk 0:10:35]} 20. Be4 {[%clk 0:03:06]}  Nxf8 {[%clk 0:10:35]} 21. Bxa8 {[%clk 0:03:06]}  Qxa8 {[%clk 0:10:35]} 22. f3 {[%clk 0:03:06]}  Nxd7 {[%clk 0:10:35]} 23. Kf2 {[%clk 0:01:14]}  Nc5 {[%clk 0:09:29]} 24. Qd2 {[%clk 0:01:14]}  Nb3 {[%clk 0:09:29]} 25. Qd1 {[%clk 0:01:14]}  Nxa1 {[%clk 0:09:29]} 26. Qxa1 {[%clk 0:01:14]}  Qd5 {[%clk 0:09:29]} 27. Kg3 {[%clk 0:01:14]}  h5 {[%clk 0:09:29]} 28. Qf1 {[%clk 0:01:14]}  Qd3 {[%clk 0:09:29]} 29. Qe1 {[%clk 0:01:14]}  Qg6+ {[%clk 0:09:29]} 30. Kf2 {[%clk 0:01:14]}  Nd3+ {[%clk 0:09:29]} 0-1


[Site "http://www.Chess.com"]

[Event "FIDE World Rapid Chess Championship 2021"]
[White "Klimkowski, Jan"]
[Black "Postny, Evgeny"]
[WhiteFideId "21856222"]
[BlackFideId "2804344"]
[WhiteElo "2211"]
[BlackElo "2454"]
[Result "0-1"]
[Round "12"]
[TimeControl "900+10"]
[Date "2021.12.28"]
[WhiteClock "0:01:09"]
[BlackClock "0:02:56"]

1. e4 {[%clk 0:15:27]}  e5 {[%clk 0:15:19]} 2. Nf3 {[%clk 0:15:27]}  Nc6 {[%clk 0:15:19]} 3. Bb5 {[%clk 0:15:27]}  a6 {[%clk 0:15:19]} 4. Ba4 {[%clk 0:15:27]}  Nf6 {[%clk 0:15:19]} 5. O-O {[%clk 0:15:27]}  Be7 {[%clk 0:15:19]} 6. Re1 {[%clk 0:15:27]}  b5 {[%clk 0:15:19]} 7. Bb3 {[%clk 0:15:27]}  d6 {[%clk 0:15:19]} 8. c3 {[%clk 0:15:27]}  Na5 {[%clk 0:15:19]} 9. Bc2 {[%clk 0:15:27]}  c5 {[%clk 0:15:19]} 10. d4 {[%clk 0:15:27]}  Qc7 {[%clk 0:15:19]} 11. h3 {[%clk 0:14:46]}  Bd7 {[%clk 0:16:39]} 12. d5 {[%clk 0:14:46]}  O-O {[%clk 0:16:39]} 13. b3 {[%clk 0:14:46]}  Rfb8 {[%clk 0:16:39]} 14. Be3 {[%clk 0:14:46]}  Ne8 {[%clk 0:16:39]} 15. Nbd2 {[%clk 0:14:46]}  c4 {[%clk 0:16:39]} 16. b4 {[%clk 0:14:46]}  Nb7 {[%clk 0:16:39]} 17. a4 {[%clk 0:13:49]}  Nd8 {[%clk 0:16:42]} 18. axb5 {[%clk 0:13:49]}  axb5 {[%clk 0:16:42]} 19. Qc1 {[%clk 0:13:49]}  Qc8 {[%clk 0:16:52]} 20. Nf1 {[%clk 0:11:12]}  Rxa1 {[%clk 0:15:21]} 21. Qxa1 {[%clk 0:09:50]}  Ra8 {[%clk 0:15:21]} 22. Qb2 {[%clk 0:09:50]}  f5 {[%clk 0:15:21]} 23. exf5 {[%clk 0:09:50]}  Bxf5 {[%clk 0:15:21]} 24. Ng3 {[%clk 0:09:50]}  Bxc2 {[%clk 0:14:04]} 25. Qxc2 {[%clk 0:09:26]}  Nf6 {[%clk 0:14:04]} 26. Rd1 {[%clk 0:09:26]}  Qb7 {[%clk 0:14:04]} 27. Ng5 {[%clk 0:09:13]}  g6 {[%clk 0:13:19]} 28. Qd2 {[%clk 0:09:13]}  Nf7 {[%clk 0:11:32]} 29. N5e4 {[%clk 0:07:10]}  Ne8 {[%clk 0:11:32]} 30. f4 {[%clk 0:07:10]}  exf4 {[%clk 0:11:32]} 31. Bxf4 {[%clk 0:07:10]}  Bf8 {[%clk 0:11:32]} 32. Ng5 {[%clk 0:06:56]}  Nxg5 {[%clk 0:10:14]} 33. Bxg5 {[%clk 0:06:56]}  Bg7 {[%clk 0:10:14]} 34. Ne2 {[%clk 0:06:56]}  Nf6 {[%clk 0:10:08]} 35. Qf4 {[%clk 0:05:36]}  Qb6+ {[%clk 0:08:01]} 36. Kh1 {[%clk 0:05:36]}  Rf8 {[%clk 0:08:01]} 37. Bxf6 {[%clk 0:03:48]}  Bxf6 {[%clk 0:06:46]} 38. Qe4 {[%clk 0:03:48]}  Be5 {[%clk 0:06:46]} 39. Nd4 {[%clk 0:03:48]}  Rf4 {[%clk 0:06:15]} 40. Qe2 {[%clk 0:01:37]}  Qb7 {[%clk 0:05:30]} 41. Nc6 {[%clk 0:01:46]}  Rf5 {[%clk 0:02:56]} 42. Ra1 {[%clk 0:01:09]}  Qg7 {[%clk 0:02:56]} 43. Ra7 {[%clk 0:01:09]}  Rf7 {[%clk 0:02:56]} 44. Rxf7 {[%clk 0:01:09]} 0-1


[Site "http://www.Chess.com"]